fUSD/lending_fUSD_20240426
["ID","MTS","AMOUNT","RATE_DAILY","PERIOD"]
[323611495,1714121443629,-500.0,0.00012273,2]
[323611496,1714121443638,-420.31520679,0.00012273,2]
[323611497,1714121443647,-1096.47,0.00012273,2]
[323611498,1714121443657,-500.0,0.00012273,2]
[323611499,1714121443667,-500.0,0.00012273,2]
[323611500,1714121443676,-346.5246993,0.00012273,2]
[323611501,1714121443685,-500.0,0.00012273,2]
[323611502,1714121443694,-500.0,0.00012273,2]
[323611503,1714121443703,-1896.24,0.00012273,2]
[323611504,1714121443712,-500.0,0.00012273,2]
[323611505,1714121443721,-512.95,0.00012273,2]
[323611506,1714121443730,-500.0,0.00012273,2]
[323611507,1714121443740,-500.0,0.00012273,2]
[323611508,1714121443753,-500.0,0.00012273,2]
[323611509,1714121443762,-500.0,0.00012273,2]
[323611510,1714121443772,-500.0,0.00012273,2]
[323611511,1714121443781,-500.0,0.00012273,2]
[323611512,1714121443791,-808.76,0.00012273,2]
[323611513,1714121443800,-500.0,0.00012273,2]
[323611514,1714121443809,-523.0,0.00012328,2]
[323611515,1714121443819,-1077.0,0.00012328,2]
[323611516,1714121443828,-1294.06229619,0.0001234,2]
[323611517,1714121443837,-1000.0,0.00012402,2]
[323611518,1714121443847,-2356.03750157,0.00012403,2]
[323611519,1714121443856,-395.414418,0.00012404,2]
[323611520,1714121443866,-500.0,0.00012404,2]
[323611521,1714121443875,-500.0,0.00012404,2]
[323611522,1714121443884,-500.0,0.00012404,2]
[323611523,1714121443894,-227.79357872,0.00012404,2]
[323611524,1714121443903,-500.0,0.00012404,2]
[323611525,1714121443913,-500.0,0.00012404,2]
[323611526,1714121443922,-500.0,0.00012404,2]
[323611527,1714121443931,-500.0,0.00012404,2]
[323611528,1714121443941,-500.0,0.00012404,2]
[323611529,1714121443950,-500.0,0.00012404,2]
[323611530,1714121443960,-512.5007913,0.00012404,2]
[323611531,1714121443969,-500.0,0.00012404,2]
[323611532,1714121443979,-500.0,0.00012404,2]
[323611533,1714121443988,-500.0,0.00012404,2]
[323611534,1714121443998,-218.90143122,0.00012404,2]
[323611535,1714121444278,-162.16479304,0.00012404,2]
[323611536,1714121444288,-500.0,0.00012404,2]
[323611537,1714121444297,-500.0,0.00012404,2]
[323611538,1714121444307,-500.0,0.00012404,2]
[323611539,1714121444317,-500.0,0.00012404,2]
[323611540,1714121444326,-500.0,0.00012404,2]
[323611541,1714121444336,-500.0,0.00012404,2]
[323611542,1714121444345,-500.0,0.00012404,2]
[323611543,1714121444354,-501.92336396,0.00012404,2]
[323611544,1714121444363,-500.0,0.00012404,2]
[323611545,1714121444372,-500.0,0.00012404,2]
[323611546,1714121444382,-500.0,0.00012404,2]
[323611547,1714121444391,-500.0,0.00012404,2]
[323611548,1714121444400,-500.61827319,0.00012404,2]
[323611549,1714121444411,-500.0,0.00012404,2]
[323611550,1714121444420,-500.0,0.00012404,2]
[323611551,1714121444430,-500.0,0.00012404,2]
[323611552,1714121444439,-500.0,0.00012404,2]
[323611553,1714121444448,-500.0,0.00012404,2]
[323611554,1714121444457,-500.0,0.00012404,2]
[323611555,1714121444467,-567.92,0.00012404,2]
[323611556,1714121444477,-319.75124554,0.00012404,2]
[323611557,1714121444486,-464.85255913,0.00012404,2]
[323611558,1714121444495,-500.0,0.00012404,2]
[323611559,1714121444505,-500.0,0.00012404,2]
[323611560,1714121444514,-500.86140532,0.00012404,2]
[323611561,1714121444523,-500.0,0.00012404,2]
[323611562,1714121444532,-500.0,0.00012404,2]
[323611563,1714121444541,-500.0,0.00012404,2]
[323611564,1714121444554,-500.0,0.00012404,2]
[323611565,1714121444563,-500.0,0.00012404,2]
[323611566,1714121444572,-500.0,0.00012404,2]
[323611567,1714121444581,-500.0,0.00012404,2]
[323611568,1714121444591,-500.0,0.00012404,2]
[323611569,1714121444600,-500.0,0.00012404,2]
[323611570,1714121444609,-500.0,0.00012404,2]
[323611571,1714121444619,-902.10534421,0.00012405,2]
[323611572,1714121444629,-1300.3807,0.00012405,2]
[323611573,1714121444638,-970.0,0.00012417,2]
[323611574,1714121444647,-1394.0,0.00012417,2]
[323611575,1714121444657,-462.0,0.00012417,2]
[323611576,1714121444667,-1228.0,0.00012417,2]
[323611577,1714121444676,-1472.0,0.00012417,2]
[323611578,1714121444685,-420.0,0.00012417,2]
[323611579,1714121444694,-443.0,0.00012417,2]
[323611580,1714121444704,-998.961,0.00012417,2]
[323611581,1714121444714,-214.0,0.00012417,2]
[323611582,1714121444723,-1134.999,0.00012417,2]
[323611583,1714121444733,-37714.0,0.00012417,2]
[323611584,1714121444744,-24550.79552499,0.000125,2]
[323611585,1714121444754,-251.69476738,0.000125,2]
[323611586,1714121444766,-500.0,0.00012547,2]
[323611587,1714121444789,-6145.34,0.00012547,2]
[323611588,1714121444804,-500.0,0.00012547,2]
[323611589,1714121444814,-500.0,0.00012547,2]
[323611590,1714121444835,-500.0,0.00012547,2]
[323611591,1714121444855,-500.0,0.00012547,2]
[323611592,1714121444865,-500.0,0.00012547,2]
[323611593,1714121444879,-779.39,0.00012547,2]
[323611594,1714121444918,-572.09,0.00012547,2]
[323611595,1714121444928,-500.0,0.00012547,2]
[323611596,1714121444951,-500.0,0.00012547,2]
[323611597,1714121444976,-1096.47,0.00012547,2]
[323611598,1714121445000,-500.0,0.00012547,2]
[323611599,1714121445013,-500.0,0.00012547,2]
[323611600,1714121445022,-406.53434687,0.00012547,2]
[323611601,1714121445032,-500.0,0.00012547,2]
[323611602,1714121445041,-1896.24,0.00012547,2]
[323611603,1714121445051,-500.0,0.00012547,2]
[323611604,1714121445060,-512.95,0.00012547,2]
[323611605,1714121445069,-500.0,0.00012547,2]
[323611606,1714121445079,-500.0,0.00012547,2]
[323611607,1714121445088,-500.0,0.00012547,2]
[323611608,1714121445098,-500.0,0.00012547,2]
[323611609,1714121445108,-500.0,0.00012547,2]
[323611610,1714121445119,-500.0,0.00012547,2]
[323611611,1714121445128,-808.76,0.00012547,2]
[323611612,1714121445138,-500.0,0.00012547,2]
[323611613,1714121445147,-1000.0,0.00012576,2]
[323611614,1714121445156,-500.0,0.00012576,2]
[323611615,1714121445167,-1000.0,0.00012577,2]
[323611616,1714121445175,-1000.0,0.00012577,2]
[323611617,1714121445184,-500.0,0.00012577,2]
[323611618,1714121445194,-500.0,0.00012577,2]
[323611619,1714121445204,-295.99,0.00012638,2]
[323611620,1714121445213,-500.0,0.00012676,2]
[323611621,1714121445223,-500.0,0.00012676,2]
[323611622,1714121445232,-621.44,0.00012676,2]
[323611623,1714121445241,-794.92,0.00012676,2]
[323611624,1714121445252,-500.0,0.00012676,2]
[323611625,1714121445261,-730.32,0.00012676,2]
[323611626,1714121445271,-698.84,0.00012676,2]
[323611627,1714121445280,-187.20126565,0.00012676,2]
[323611628,1714121445290,-500.0,0.00012676,2]
[323611629,1714121445299,-500.0,0.00012676,2]
[323611630,1714121445308,-500.0,0.00012676,2]
[323611631,1714121445318,-3505.99,0.00012676,2]
[323611632,1714121445327,-500.0,0.00012676,2]
[323611633,1714121445337,-500.0,0.00012676,2]
[323611634,1714121445346,-500.0,0.00012676,2]
[323611635,1714121445355,-245.15,0.00012676,2]
[323611636,1714121445364,-500.0,0.00012676,2]
[323611637,1714121445373,-500.0,0.00012676,2]
[323611638,1714121445383,-500.0,0.00012676,2]
[323611639,1714121445392,-319.85837209,0.00012676,2]
[323611640,1714121445402,-173.02804405,0.00012677,2]
[323611641,1714121445413,-2342.11891346,0.00012677,2]
[323611642,1714121445423,-500.0,0.00012677,2]
[323611643,1714121445432,-382.93466968,0.00012677,2]
[323611644,1714121445442,-500.0,0.00012677,2]
[323611645,1714121445451,-504.15614218,0.00012677,2]
[323611646,1714121445460,-1114.79,0.00012677,2]
[323611647,1714121445470,-500.0,0.00012677,2]
[323611648,1714121445479,-1124.29,0.00012677,2]
[323611649,1714121445488,-625.87,0.00012677,2]
[323611650,1714121445498,-500.0,0.00012677,2]
[323611651,1714121445508,-500.0,0.00012677,2]
[323611652,1714121445517,-500.0,0.00012677,2]
[323611653,1714121445526,-500.0,0.00012677,2]
[323611654,1714121445535,-500.0,0.00012677,2]
[323611655,1714121445544,-704.51,0.00012677,2]
[323611656,1714121445554,-500.0,0.00012677,2]
[323611657,1714121445563,-500.0,0.00012677,2]
[323611658,1714121445573,-500.0,0.00012677,2]
[323611659,1714121445582,-500.0,0.00012677,2]
[323611660,1714121445591,-531.19147965,0.00012677,2]
[323611661,1714121445601,-500.0,0.00012677,2]
[323611662,1714121445610,-510.4,0.00012677,2]
[323611663,1714121445619,-613.15,0.00012677,2]
[323611664,1714121445629,-500.0,0.00012677,2]
[323611665,1714121445640,-990.17,0.00012677,2]
[323611666,1714121445650,-658.11,0.00012677,2]
[323611667,1714121445662,-500.0,0.00012677,2]
[323611668,1714121445671,-500.0,0.00012677,2]
[323611669,1714121445685,-500.0,0.00012677,2]
[323611670,1714121445694,-500.0,0.00012677,2]
[323611671,1714121445703,-5767.3,0.00012677,2]
[323611672,1714121445712,-500.0,0.00012677,2]
[323611673,1714121445722,-329.53898838,0.00012677,2]
[323611674,1714121445731,-500.0,0.00012677,2]
[323611675,1714121445740,-500.0,0.00012677,2]
[323611676,1714121445749,-1061.0,0.00012678,2]
[323611677,1714121445759,-333.7,0.00012678,2]
[323611678,1714121445769,-500.0,0.00012678,2]
[323611679,1714121445778,-500.0,0.00012678,2]
[323611680,1714121445787,-500.0,0.00012678,2]
[323611681,1714121445797,-1270.61,0.00012678,2]
[323611682,1714121445807,-500.0,0.00012678,2]
[323611683,1714121445816,-500.0,0.00012678,2]
[323611684,1714121445825,-14047.23,0.00012678,2]
[323611685,1714121445835,-382.27,0.00012678,2]
[323611686,1714121445844,-362.54,0.00012678,2]
[323611687,1714121445853,-860.0,0.00012724,2]
[323611688,1714121445863,-10095.09587421,0.000128,2]
[323611689,1714121445872,-500.0,0.00012821,2]
[323611690,1714121445881,-6145.34,0.00012821,2]
[323611691,1714121445891,-500.0,0.00012821,2]
[323611692,1714121445901,-500.0,0.00012821,2]
[323611693,1714121445913,-500.0,0.00012821,2]
[323611694,1714121445922,-500.0,0.00012821,2]
[323611695,1714121445933,-500.0,0.00012821,2]
[323611696,1714121445944,-779.39,0.00012821,2]
[323611697,1714121445954,-572.09,0.00012821,2]
[323611698,1714121445964,-500.0,0.00012821,2]
[323611699,1714121445974,-500.0,0.00012821,2]
[323611700,1714121445984,-1096.47,0.00012821,2]
[323611701,1714121445993,-363.15611552,0.00012821,2]
[323611702,1714121446003,-500.0,0.00012821,2]
[323611703,1714121446013,-500.0,0.00012821,2]
[323611704,1714121446023,-1896.24,0.00012821,2]
[323611705,1714121446033,-500.0,0.00012821,2]
[323611706,1714121446043,-512.95,0.00012821,2]
[323611707,1714121446052,-500.0,0.00012821,2]
[323611708,1714121446063,-500.0,0.00012821,2]
[323611709,1714121446074,-500.0,0.00012821,2]
[323611710,1714121446084,-500.0,0.00012821,2]
[323611711,1714121446094,-500.0,0.00012821,2]
[323611712,1714121446104,-500.0,0.00012821,2]
[323611713,1714121446114,-808.76,0.00012821,2]
[323611714,1714121446126,-623.01,0.00012821,2]
[323611715,1714121446136,-221.07,0.00012842,2]
[323611716,1714121446147,-1154.32180932,0.00012889,2]
[323611717,1714121446156,-1154.32180926,0.0001289,2]
[323611718,1714121446167,-1154.32180926,0.00012891,2]
[323611719,1714121446176,-1154.32180926,0.00012892,2]
[323611720,1714121446187,-56508.19034664,0.00012892,2]
[323611721,1714121446197,-1154.32180926,0.00012893,2]
[323611722,1714121446208,-1154.32180926,0.00012894,2]
[323611723,1714121446218,-1154.32180926,0.00012895,2]
[323611724,1714121446228,-1154.32180926,0.00012896,2]
[323611725,1714121446239,-1154.32180926,0.00012897,2]
[323611726,1714121446250,-1154.32180926,0.00012898,2]
[323611727,1714121446261,-1154.32180926,0.00012899,2]
[323611728,1714121446272,-2020.92,0.000129,2]
[323611729,1714121446281,-923.0114493,0.000129,2]
[323611730,1714121446292,-2229.59884066,0.000129,2]
[323611731,1714121446302,-2978.5519,0.000129,2]
[323611732,1714121446311,-1154.32180926,0.000129,2]
[323611733,1714121446322,-415.41672301,0.000129,2]
[323611734,1714121446331,-40557.98070877,0.000129,2]
[323611735,1714121446341,-500.0,0.0001295,2]
[323611736,1714121446350,-500.0,0.0001295,2]
[323611737,1714121446360,-621.44,0.0001295,2]
[323611738,1714121446370,-794.92,0.0001295,2]
[323611739,1714121446380,-500.0,0.0001295,2]
[323611740,1714121446390,-730.32,0.0001295,2]
[323611741,1714121446401,-698.84,0.0001295,2]
[323611742,1714121446414,-500.0,0.0001295,2]
[323611743,1714121446424,-500.0,0.0001295,2]
[323611744,1714121446435,-500.0,0.0001295,2]
[323611745,1714121446446,-3505.99,0.0001295,2]
[323611746,1714121446457,-528.45,0.0001295,2]
[323611747,1714121446467,-500.0,0.0001295,2]
[323611748,1714121446477,-181.11,0.0001295,2]
[323611749,1714121446487,-186.97713215,0.00012951,2]
[323611750,1714121446497,-500.0,0.00012951,2]
[323611751,1714121446507,-1114.79,0.00012951,2]
[323611752,1714121446518,-500.0,0.00012951,2]
[323611753,1714121446528,-1124.29,0.00012951,2]
[323611754,1714121446537,-500.0,0.00012951,2]
[323611755,1714121446548,-500.0,0.00012951,2]
[323611756,1714121446557,-500.0,0.00012951,2]
[323611757,1714121446567,-704.51,0.00012951,2]
[323611758,1714121446577,-500.0,0.00012951,2]
[323611759,1714121446587,-500.0,0.00012951,2]
[323611760,1714121446598,-500.0,0.00012951,2]
[323611761,1714121446609,-500.0,0.00012951,2]
[323611762,1714121446620,-510.4,0.00012951,2]
[323611763,1714121446640,-500.0,0.00012951,2]
[323611764,1714121446652,-990.17,0.00012951,2]
[323611765,1714121446665,-658.11,0.00012951,2]
[323611766,1714121446688,-500.0,0.00012951,2]
[323611767,1714121446707,-500.0,0.00012951,2]
[323611768,1714121446717,-5767.3,0.00012951,2]
[323611769,1714121446738,-500.0,0.00012951,2]
[323611770,1714121446761,-500.0,0.00012951,2]
[323611771,1714121446771,-500.0,0.00012951,2]
[323611772,1714121446788,-387.82,0.00012952,2]
[323611773,1714121446809,-262.43,0.00012952,2]
[323611774,1714121446831,-500.0,0.00012952,2]
[323611775,1714121446854,-1270.61,0.00012952,2]
[323611776,1714121446864,-500.0,0.00012952,2]
[323611777,1714121446874,-500.0,0.00012952,2]
[323611778,1714121446884,-14047.23,0.00012952,2]
[323611779,1714121446894,-500.0,0.0001297,2]
[323611780,1714121446903,-623.8074028,0.0001298,2]
[323611781,1714121446914,-11708.8969889,0.0001298,2]
[323611782,1714121446923,-197.54489273,0.00012984,2]
[323611783,1714121446932,-279.5494414,0.00012984,2]
[323611784,1714121446941,-217.8755265,0.00012984,2]
[323611785,1714121446950,-272.8228514,0.00012984,2]
[323611786,1714121446960,-157.1312396,0.00012984,2]
[323611787,1714121446970,-155.12585439,0.00012984,2]
[323611788,1714121446980,-433.9599498,0.00012984,2]
[323611789,1714121446990,-166.12995967,0.00012984,2]
[323611790,1714121446999,-155.23723071,0.00012984,2]
[323611791,1714121447009,-1062.94885772,0.00012984,2]
[323611792,1714121447019,-156.34146276,0.00012984,2]
[323611793,1714121447029,-157.38890378,0.00012985,2]
[323611794,1714121447039,-3259.71125677,0.00012985,2]
[323611795,1714121447048,-928.84187792,0.00012985,2]
[323611796,1714121447057,-488.36496742,0.00012985,2]
[323611797,1714121447066,-328.91857968,0.00012985,2]
[323611798,1714121447075,-17287.734467,0.00012985,2]
[323611799,1714121447086,-159.25630021,0.00012986,2]
[323611800,1714121447095,-7367.62699221,0.00012986,2]
[323611801,1714121447105,-375.0,0.00012986,2]
[323611802,1714121447115,-2085.6902106,0.00012986,2]
[323611803,1714121447125,-13784.52554758,0.00012986,2]
[323611804,1714121447140,-5893.04789687,0.00012986,2]
[323611805,1714121447152,-19470.93892965,0.00012986,2]
[323611806,1714121447162,-999.0,0.00012987,2]
[323611807,1714121447172,-7233.90846095,0.00012987,2]
[323611808,1714121447181,-4965.62738978,0.00012987,2]
[323611809,1714121447574,-155.0,9.325e-05,2]
[323611810,1714121447583,-474.27928532,9.519e-05,2]
[323611811,1714121447595,-71.79910495,9.519e-05,2]
[323611812,1714121447605,-935.00089505,0.00012987,2]
[323611813,1714121447623,-683.26046656,0.00012987,2]
[323611814,1714121447634,-528.93631362,0.00012987,2]
[323611815,1714121447644,-790.12443875,0.00012987,2]
[323611816,1714121447661,-30.27193844,0.00012987,2]
[323611817,1714121447669,-1814.43211704,0.00012987,2]
[323611818,1714121447689,-1237.19006972,0.00012987,2]
[323611819,1714121447718,-431.96925012,0.00012987,2]
[323611820,1714121447738,-2987.74719742,0.00012987,2]
[323611821,1714121447747,-5009.4558264,0.00012987,2]
[323611822,1714121447757,-3547.5730185,0.00012987,2]
[323611823,1714121447767,-7497.19053024,0.00012987,2]
[323611824,1714121447779,-1723.20004616,0.00012987,2]
[323611825,1714121447799,-24995.630268,0.00012987,2]
[323611826,1714121979000,50000.0,0.00025,120]
[323611830,1714122349980,150.0,8.555e-05,2]
[323611831,1714122350000,150.0,8.555e-05,2]
[323611832,1714122350020,37.46,8.555e-05,2]
[323611833,1714122356724,344.64585884,8.555e-05,2]
[323611834,1714122370705,201.48056352,8.555e-05,2]
[323611835,1714122370727,143.16529532,8.555e-05,2]
[323611836,1714122388693,357.53892731,8.555e-05,2]
[323611837,1714122423903,150.0,8.555e-05,2]
[323611838,1714122423924,150.0,8.555e-05,2]
[323611839,1714122423946,65.91209353,8.555e-05,2]
[323611840,1714122427919,150.0,8.555e-05,2]
[323611841,1714122427940,107.49330705,8.555e-05,2]
[323611842,1714122437815,150.0,8.555e-05,2]
[323611843,1714122437835,150.0,8.555e-05,2]
[323611844,1714122437854,65.91209353,8.555e-05,2]
[323611845,1714122441902,150.0,8.555e-05,2]
[323611846,1714122441925,107.49330705,8.555e-05,2]
[323611847,1714122443564,42.50669295,8.555e-05,2]
[323611848,1714122443585,150.0,8.555e-05,2]
[323611849,1714122443605,150.0,8.555e-05,2]
[323611850,1714122443628,40.56328668,8.555e-05,2]
[323611851,1714122455826,150.0,8.555e-05,2]
[323611852,1714122455849,150.0,8.555e-05,2]
[323611853,1714122456795,65.91209353,8.555e-05,2]
[323611854,1714122463888,150.0,8.555e-05,2]
[323611855,1714122463910,107.49330705,8.555e-05,2]
[323611856,1714122477818,150.0,8.555e-05,2]
[323611857,1714122477838,150.0,8.555e-05,2]
[323611858,1714122477859,65.91209353,8.555e-05,2]
[323611859,1714122481947,257.49330705,8.555e-05,2]
[323611860,1714122491491,403.86075154,8.555e-05,2]
[323611861,1714122497899,150.0,8.555e-05,2]
[323611862,1714122497921,107.49330705,8.555e-05,2]
[323611863,1714122503831,150.0,8.555e-05,2]
[323611864,1714122503853,150.0,8.555e-05,2]
[323611865,1714122503874,64.83287317,8.555e-05,2]
[323611866,1714122519914,257.49330705,8.555e-05,2]
[323611867,1714122539905,257.49330705,8.555e-05,2]
[323611868,1714122555908,257.49330705,8.555e-05,2]
[323611869,1714122571907,150.0,8.555e-05,2]
[323611870,1714122571928,107.49330705,8.555e-05,2]
[323611871,1714122593923,257.49330705,8.555e-05,2]
[323611872,1714122614181,257.49330705,8.555e-05,2]
[323611878,1714122631593,-186.17414448,9.217e-05,2]
[323611879,1714122631604,-641.69726746,9.218e-05,2]
[323611880,1714122631614,-141.58511343,9.219e-05,2]
[323611881,1714122631624,-1635.60454872,9.219e-05,2]
[323611882,1714122631634,-1732.32633044,9.22e-05,2]
[323611883,1714122631645,-263.12425988,9.22e-05,2]
[323611884,1714122631654,-363.35615839,9.221e-05,2]
[323611885,1714122631663,-542.84273976,9.222e-05,2]
[323611886,1714122631674,-163.89639621,9.222e-05,2]
[323611887,1714122631684,-247.36463483,9.223e-05,2]
[323611888,1714122631706,-753.66321503,9.223e-05,2]
[323611889,1714122631717,-1359.7504976,9.223e-05,2]
[323611890,1714122631727,-148.05382943,9.225e-05,2]
[323611891,1714122631742,-2846.60810757,9.225e-05,2]
[323611892,1714122631753,-300.18750346,9.225e-05,2]
[323611893,1714122631763,-155.0,9.512e-05,2]
[323611894,1714122631772,-26182.30706133,9.518e-05,2]
[323611895,1714122631783,-415.5556948,9.519e-05,2]
[323611896,1714122631793,-289.25,0.00010198,2]
[323611897,1714122631803,-614.24,0.00010227,2]
[323611898,1714122631814,-883.91,0.00010403,2]
[323611899,1714122631824,-1500.0,0.0001046,2]
[323611900,1714122631834,-180.14,0.00010552,2]
[323611901,1714122631843,-23900.0,0.00010553,2]
[323611902,1714122631857,-170.75,0.0001062,2]
[323611903,1714122631866,-170.75,0.00010804,2]
[323611904,1714122631876,-499.99,0.00010811,2]
[323611905,1714122631885,-337.46,0.00010819,2]
[323611906,1714122631894,-500.0,0.00010959,2]
[323611907,1714122631904,-170.75,0.00010989,2]
[323611908,1714122631913,-55711.87277003,0.00011,2]
[323611909,1714122631923,-200.0,0.00011,2]
[323611910,1714122631933,-207.0,0.0001107,2]
[323611911,1714122631944,-170.75,0.00011173,2]
[323611912,1714122631954,-207.0,0.000113,2]
[323611913,1714122631964,-158.52,0.00011454,2]
[323611914,1714122631973,-614.24,0.00011506,2]
[323611915,1714122631982,-207.0,0.0001153,2]
[323611916,1714122631991,-13342.7211424,0.00011544,2]
[323611917,1714122632001,-186.95,0.00011683,2]
[323611918,1714122632010,-186.95,0.00011712,2]
[323611919,1714122632019,-186.95,0.00011742,2]
[323611920,1714122632029,-207.0,0.0001176,2]
[323611921,1714122632039,-207.0,0.00012,2]
[323611922,1714122632050,-164.65,0.00012047,2]
[323611923,1714122632059,-5000.0,0.00012097,2]
[323611924,1714122632068,-6173.05789955,0.00012098,2]
[323611925,1714122632079,-833.50211302,0.00012098,2]
[323611926,1714122632090,-539.69020108,0.00012098,2]
[323611927,1714122632127,-1616.31417857,0.00012098,2]
[323611928,1714122632138,-7769.60922863,0.00012098,2]
[323611929,1714122632185,150.0,8.555e-05,2]
[323611930,1714122632208,107.49330705,8.555e-05,2]
[323611942,1714122637615,-1738.33828307,0.00012098,2]
[323611943,1714122637627,-1290.8,0.00012098,2]
[323611948,1714122637667,-396.96657,0.00012098,2]
[323611954,1714122637721,-17331.72152608,0.00012098,2]
[323611956,1714122637730,-214.0,0.0001223,2]
[323611958,1714122637740,-207.0,0.0001223,2]
[323611960,1714122637748,-214.0,0.0001246,2]
[323611962,1714122637758,-207.0,0.0001246,2]
[323611964,1714122637768,-500.0,0.00012475,2]
[323611966,1714122637780,-500.0,0.00012475,2]
[323611968,1714122637792,-502.51043313,0.00012475,2]
[323611970,1714122637802,-224.90448357,0.00012475,2]
[323611972,1714122637812,-500.0,0.00012475,2]
[323611974,1714122637821,-314.99108986,0.00012475,2]
[323611976,1714122637831,-645.8,0.00012475,2]
[323611978,1714122637840,-500.0,0.00012475,2]
[323611980,1714122637850,-500.0,0.00012475,2]
[323611982,1714122637862,-907.66,0.00012475,2]
[323611984,1714122637872,-469.78117784,0.00012475,2]
[323611986,1714122637881,-500.0,0.00012475,2]
[323611987,1714122637891,-500.0,0.00012475,2]
[323611988,1714122637900,-500.0,0.00012475,2]
[323611989,1714122637909,-500.0,0.00012475,2]
[323611990,1714122637920,-500.0,0.00012475,2]
[323611991,1714122637929,-378.44571671,0.00012475,2]
[323611992,1714122637938,-500.0,0.00012475,2]
[323611993,1714122637947,-500.0,0.00012475,2]
[323611994,1714122637957,-500.0,0.00012475,2]
[323611995,1714122637966,-500.0,0.00012475,2]
[323611996,1714122637975,-500.0,0.00012475,2]
[323611997,1714122637984,-1164.73,0.00012475,2]
[323611998,1714122637994,-500.0,0.00012475,2]
[323611999,1714122638003,-316.93316869,0.00012475,2]
[323612000,1714122638030,-1303.35773896,0.00012475,2]
[323612001,1714122638041,-3262.59999997,0.00012475,2]
[323612002,1714122638052,-22040.97909238,0.00012475,2]
[323612003,1714122638061,-969.0,0.00012475,2]
[323612004,1714122638070,-1066.413,0.00012475,2]
[323612005,1714122638080,-942.058,0.00012475,2]
[323612006,1714122638089,-358.549,0.00012475,2]
[323612007,1714122638099,-281.424,0.00012475,2]
[323612008,1714122638110,-214.0,0.00012475,2]
[323612010,1714122638119,-251.69476738,0.00012674,2]
[323612012,1714122638128,-500.0,0.00012675,2]
[323612014,1714122638138,-17411.8,0.00012675,2]
[323612016,1714122638147,-154.92445217,0.00012675,2]
[323612018,1714122638157,-500.0,0.00012675,2]
[323612020,1714122638167,-554.07453183,0.00012675,2]
[323612022,1714122638177,-649.49,0.00012675,2]
[323612024,1714122638188,-500.0,0.00012675,2]
[323612025,1714122638199,-500.0,0.00012675,2]
[323612026,1714122638209,-500.0,0.00012675,2]
[323612027,1714122638218,-1365.21,0.00012675,2]
[323612028,1714122638227,-500.0,0.00012675,2]
[323612029,1714122638236,-500.0,0.00012675,2]
[323612030,1714122638245,-728.68,0.00012675,2]
[323612031,1714122638254,-669.46,0.00012675,2]
[323612032,1714122638263,-500.0,0.00012675,2]
[323612033,1714122638272,-500.0,0.00012675,2]
[323612034,1714122638280,-381.3160149,0.00012675,2]
[323612035,1714122638289,-555.04,0.00012675,2]
[323612036,1714122638298,-232.36744134,0.00012675,2]
[323612037,1714122638309,-267.63255866,0.00012675,2]
[323612038,1714122638318,-569.66,0.00012675,2]
[323612039,1714122638327,-157.22744134,0.00012675,2]
[323612040,1714122638339,-342.77255866,0.00012675,2]
[323612041,1714122638348,-500.0,0.00012675,2]
[323612042,1714122638359,-500.0,0.00012675,2]
[323612043,1714122638368,-168.5301664,0.00012675,2]
[323612044,1714122639672,-417.18296046,0.00012675,2]
[323612045,1714122639988,-2628.11687314,0.00012675,2]
[323612046,1714122639998,-500.0,0.00012675,2]